[Event "Live Chess"]
[Site "Chess.com"]
[Date "2023.05.21"]
[Round "-"]
[White "domrobson"]
[Black "EdenHazard8"]
[Result "1/2-1/2"]
[WhiteElo "1739"]
[BlackElo "1973"]
[TimeControl "300"]
[EndTime "2:09:40 PDT"]
[Termination "Game drawn by repetition"]

1. d4 {[%clk 0:04:59]} 1... d5 {[%clk 0:04:58.8]} 2. c4 {[%clk 0:04:58.3]} 2...
e6 {[%clk 0:04:58.2]} 3. Nf3 {[%clk 0:04:57.7]} 3... Nf6 {[%clk 0:04:57.3]} 4.
Nc3 {[%clk 0:04:57.1]} 4... c6 {[%clk 0:04:56]} 5. Bg5 {[%clk 0:04:56.1]} 5...
dxc4 {[%clk 0:04:55.2]} 6. a4 {[%clk 0:04:53.5]} 6... Be7 {[%clk 0:04:43.8]} 7.
e3 {[%clk 0:04:51.5]} 7... Nbd7 {[%clk 0:04:40.9]} 8. Bxc4 {[%clk 0:04:50.6]}
8... Qa5 {[%clk 0:04:39.2]} 9. O-O {[%clk 0:04:47.7]} 9... O-O {[%clk
0:04:35.3]} 10. Bd3 {[%clk 0:04:46]} 10... h6 {[%clk 0:04:33.6]} 11. Bxf6 {[%clk
0:04:44.5]} 11... Nxf6 {[%clk 0:04:33.5]} 12. Ne5 {[%clk 0:04:43.7]} 12... Qd5
{[%clk 0:04:28]} 13. f4 {[%clk 0:04:32.2]} 13... c5 {[%clk 0:04:24.1]} 14. Bc4
{[%clk 0:04:23.8]} 14... Qd8 {[%clk 0:04:20.8]} 15. d5 {[%clk 0:04:19.4]} 15...
exd5 {[%clk 0:04:14.2]} 16. Nxd5 {[%clk 0:04:16.6]} 16... Nxd5 {[%clk
0:04:12.8]} 17. Bxd5 {[%clk 0:04:15.6]} 17... Qb6 {[%clk 0:04:05.5]} 18. Qb3
{[%clk 0:04:11.5]} 18... Qxb3 {[%clk 0:04:00.7]} 19. Bxb3 {[%clk 0:04:10.1]}
19... Be6 {[%clk 0:03:56.4]} 20. Bxe6 {[%clk 0:04:08.5]} 20... fxe6 {[%clk
0:03:56.3]} 21. Rac1 {[%clk 0:04:04.1]} 21... Rfd8 {[%clk 0:03:53.4]} 22. Rfd1
{[%clk 0:03:56.2]} 22... Rd5 {[%clk 0:03:46.8]} 23. e4 {[%clk 0:03:48]} 23...
Rd6 {[%clk 0:03:35.9]} 24. Ng6 {[%clk 0:03:40.1]} 24... Rxd1+ {[%clk 0:03:31.3]}
25. Rxd1 {[%clk 0:03:37.5]} 25... Bd8 {[%clk 0:03:30.8]} 26. f5 {[%clk
0:03:30.8]} 26... exf5 {[%clk 0:03:28.1]} 27. exf5 {[%clk 0:03:29.9]} 27... Bf6
{[%clk 0:03:27.5]} 28. b3 {[%clk 0:03:26.1]} 28... Re8 {[%clk 0:03:25.5]} 29.
Kf2 {[%clk 0:03:20.5]} 29... Bd4+ {[%clk 0:03:22.6]} 30. Kf3 {[%clk 0:03:18]}
30... Re3+ {[%clk 0:03:19]} 31. Kf4 {[%clk 0:03:17.2]} 31... Rxb3 {[%clk
0:03:15.5]} 32. Re1 {[%clk 0:03:15.4]} 32... Kf7 {[%clk 0:02:42.3]} 33. Re7+
{[%clk 0:03:09.2]} 33... Kf6 {[%clk 0:02:41]} 34. Re6+ {[%clk 0:03:08.1]} 34...
Kf7 {[%clk 0:02:39.3]} 35. Re7+ {[%clk 0:03:07.5]} 35... Kf6 {[%clk 0:02:37.7]}
36. Re6+ {[%clk 0:03:06.7]} 36... Kf7 {[%clk 0:02:36.9]} 37. Re7+ {[%clk
0:03:06]} 1/2-1/2

[Event "Live Chess"]
[Site "Chess.com"]
[Date "2023.05.21"]
[Round "-"]
[White "Singapourfeuj"]
[Black "ranvir123"]
[Result "1-0"]
[WhiteElo "2188"]
[BlackElo "920"]
[TimeControl "300"]
[EndTime "2:09:51 PDT"]
[Termination "Singapourfeuj won by resignation"]

1. d4 {[%clk 0:04:59.3]} 1... Nf6 {[%clk 0:04:57.9]} 2. Nf3 {[%clk 0:04:58]}
2... g6 {[%clk 0:04:57.1]} 3. g3 {[%clk 0:04:56.9]} 3... Bg7 {[%clk 0:04:56.5]}
4. Bg2 {[%clk 0:04:56.2]} 4... d5 {[%clk 0:04:55.7]} 5. O-O {[%clk 0:04:55.3]}
5... Nc6 {[%clk 0:04:53.3]} 6. Re1 {[%clk 0:04:52.9]} 6... e5 {[%clk 0:04:52.4]}
7. dxe5 {[%clk 0:04:51.8]} 7... Ng4 {[%clk 0:04:49.3]} 8. Nc3 {[%clk 0:04:50.5]}
8... Ngxe5 {[%clk 0:04:46.1]} 9. Nxe5 {[%clk 0:04:48.2]} 9... Bxe5 {[%clk
0:04:37.9]} 10. Qxd5 {[%clk 0:04:46.4]} 10... Qxd5 {[%clk 0:04:35.9]} 11. Nxd5
{[%clk 0:04:45.1]} 11... Be6 {[%clk 0:04:27.5]} 12. f4 {[%clk 0:04:43]} 12...
Bd6 {[%clk 0:04:22.6]} 13. e4 {[%clk 0:04:37.5]} 13... O-O-O {[%clk 0:04:14.9]}
14. c3 {[%clk 0:04:35.7]} 14... Bxd5 {[%clk 0:04:10.9]} 15. exd5 {[%clk
0:04:33.9]} 15... Na5 {[%clk 0:04:02.7]} 16. b3 {[%clk 0:04:30]} 16... Rde8
{[%clk 0:04:00.9]} 17. Bd2 {[%clk 0:04:25.8]} 17... Re7 {[%clk 0:03:54.6]} 18.
c4 {[%clk 0:04:22.3]} 18... Bc5+ {[%clk 0:03:44.3]} 19. Kf1 {[%clk 0:04:20.9]}
19... b6 {[%clk 0:03:39.4]} 20. Rxe7 {[%clk 0:04:13]} 20... Bxe7 {[%clk
0:03:36.5]} 21. Re1 {[%clk 0:04:10.9]} 21... Re8 {[%clk 0:03:32.8]} 22. f5
{[%clk 0:04:04.8]} 22... c5 {[%clk 0:03:23.4]} 23. d6 {[%clk 0:04:02.1]} 1-0

[Event "Live Chess"]
[Site "Chess.com"]
[Date "2023.05.21"]
[Round "-"]
[White "SupremeTactician"]
[Black "TheSmoulderingMaster"]
[Result "1-0"]
[WhiteElo "2270"]
[BlackElo "1698"]
[TimeControl "300"]
[EndTime "2:10:00 PDT"]
[Termination "SupremeTactician won by resignation"]

1. e4 {[%clk 0:04:58.8]} 1... c5 {[%clk 0:04:58.8]} 2. Nf3 {[%clk 0:04:57.4]}
2... d6 {[%clk 0:04:58.2]} 3. d4 {[%clk 0:04:56.7]} 3... cxd4 {[%clk 0:04:57.8]}
4. Nxd4 {[%clk 0:04:56.6]} 4... Nf6 {[%clk 0:04:57.1]} 5. f3 {[%clk 0:04:56.5]}
5... g6 {[%clk 0:04:56.6]} 6. c4 {[%clk 0:04:55.9]} 6... Bg7 {[%clk 0:04:56]} 7.
Nc3 {[%clk 0:04:55.6]} 7... O-O {[%clk 0:04:55.3]} 8. Be3 {[%clk 0:04:55.3]}
8... Nc6 {[%clk 0:04:54.8]} 9. Qd2 {[%clk 0:04:54.8]} 9... Bd7 {[%clk 0:04:53]}
10. Rc1 {[%clk 0:04:54.4]} 10... a6 {[%clk 0:04:51.6]} 11. Be2 {[%clk
0:04:54.1]} 11... Ne5 {[%clk 0:04:48.9]} 12. O-O {[%clk 0:04:53.2]} 12... Rc8
{[%clk 0:04:47.3]} 13. b3 {[%clk 0:04:52.9]} 13... Qa5 {[%clk 0:04:45]} 14. Rfd1
{[%clk 0:04:52]} 14... b5 {[%clk 0:04:41.6]} 15. Nd5 {[%clk 0:04:51.1]} 15...
Qd8 {[%clk 0:04:37.7]} 16. f4 {[%clk 0:04:49.8]} 16... Neg4 {[%clk 0:04:30.2]}
17. Nxf6+ {[%clk 0:04:47.8]} 17... Nxf6 {[%clk 0:04:29]} 18. cxb5 {[%clk
0:04:45.3]} 18... Rxc1 {[%clk 0:04:25.9]} 19. Rxc1 {[%clk 0:04:44]} 19... Nxe4
{[%clk 0:04:24.3]} 20. Qd3 {[%clk 0:04:42.7]} 20... d5 {[%clk 0:04:12.1]} 21.
Nc6 {[%clk 0:04:39.2]} 21... Bxc6 {[%clk 0:04:04.7]} 22. bxc6 {[%clk 0:04:39.1]}
22... Qc7 {[%clk 0:03:58.9]} 23. Qxd5 {[%clk 0:04:35.5]} 23... Nc3 {[%clk
0:03:55.1]} 24. Qd3 {[%clk 0:04:33.5]} 24... Nxe2+ {[%clk 0:03:53.5]} 25. Qxe2
{[%clk 0:04:32.8]} 25... Rc8 {[%clk 0:03:50.3]} 26. Qxa6 {[%clk 0:04:29.8]}
26... Rd8 {[%clk 0:03:36.6]} 27. Bb6 {[%clk 0:04:17.4]} 27... Bd4+ {[%clk
0:03:35.4]} 28. Bxd4 {[%clk 0:04:16.6]} 28... Rxd4 {[%clk 0:03:35.3]} 29. Qa8+
{[%clk 0:04:03.4]} 29... Kg7 {[%clk 0:03:33.9]} 30. Qb7 {[%clk 0:03:58.5]} 30...
Qxf4 {[%clk 0:03:32.2]} 31. Rf1 {[%clk 0:03:56.4]} 31... Qe3+ {[%clk 0:03:29.3]}
32. Kh1 {[%clk 0:03:55.7]} 32... Qe2 {[%clk 0:03:25.7]} 33. Rg1 {[%clk
0:03:54.7]} 33... Rd1 {[%clk 0:03:23.5]} 34. Qb6 {[%clk 0:03:48.3]} 34... Rxg1+
{[%clk 0:03:21.3]} 35. Qxg1 {[%clk 0:03:47.5]} 35... Qa6 {[%clk 0:03:13.1]} 36.
Qd4+ {[%clk 0:03:45.3]} 36... Kg8 {[%clk 0:03:10.2]} 37. Qc4 {[%clk 0:03:40.9]}
37... Qa5 {[%clk 0:03:06]} 38. Qc1 {[%clk 0:03:27.5]} 38... Qxa2 {[%clk
0:03:03.2]} 39. c7 {[%clk 0:03:26.7]} 1-0

[Event "Live Chess"]
[Site "Chess.com"]
[Date "2023.05.21"]
[Round "-"]
[White "Pablo_dmp"]
[Black "KeithArkell"]
[Result "0-1"]
[WhiteElo "1854"]
[BlackElo "2508"]
[TimeControl "300"]
[EndTime "2:10:57 PDT"]
[Termination "KeithArkell won on time"]

1. e4 {[%clk 0:04:58.8]} 1... e6 {[%clk 0:04:58.1]} 2. d4 {[%clk 0:04:54.1]}
2... d5 {[%clk 0:04:57.2]} 3. exd5 {[%clk 0:04:48.7]} 3... Qxd5 {[%clk
0:04:55.6]} 4. Bd3 {[%clk 0:04:48.6]} 4... Nc6 {[%clk 0:04:53.2]} 5. Nf3 {[%clk
0:04:33.6]} 5... Nf6 {[%clk 0:04:49.8]} 6. Bg5 {[%clk 0:04:28.6]} 6... Be7
{[%clk 0:04:48]} 7. O-O {[%clk 0:04:22.3]} 7... O-O {[%clk 0:04:45.8]} 8. Nc3
{[%clk 0:04:20.6]} 8... Qa5 {[%clk 0:04:42.4]} 9. Qe2 {[%clk 0:04:03.2]} 9...
Nb4 {[%clk 0:04:35.1]} 10. a3 {[%clk 0:03:47.6]} 10... Nxd3 {[%clk 0:04:34]} 11.
Qxd3 {[%clk 0:03:47.5]} 11... h6 {[%clk 0:04:22.4]} 12. Bh4 {[%clk 0:03:41.1]}
12... Qf5 {[%clk 0:04:09.9]} 13. Qxf5 {[%clk 0:03:33.6]} 13... exf5 {[%clk
0:04:09]} 14. Bg3 {[%clk 0:03:30]} 14... Bd6 {[%clk 0:04:05.7]} 15. Bxd6 {[%clk
0:03:26.1]} 15... cxd6 {[%clk 0:04:04.8]} 16. Nb5 {[%clk 0:03:22.5]} 16... Ne4
{[%clk 0:04:03.9]} 17. Nc7 {[%clk 0:03:13.9]} 17... Rb8 {[%clk 0:04:02.4]} 18.
d5 {[%clk 0:02:43.7]} 18... Bd7 {[%clk 0:04:00]} 19. Nd4 {[%clk 0:02:29.4]}
19... Rfc8 {[%clk 0:03:57.8]} 20. Ncb5 {[%clk 0:02:27.9]} 20... Bxb5 {[%clk
0:03:55.9]} 21. Nxb5 {[%clk 0:02:27.8]} 21... Rxc2 {[%clk 0:03:52]} 22. f3
{[%clk 0:02:09.7]} 22... Rxb2 {[%clk 0:03:50.2]} 23. fxe4 {[%clk 0:02:08]} 23...
Rxb5 {[%clk 0:03:49]} 24. Rxf5 {[%clk 0:02:03.8]} 24... Rc8 {[%clk 0:03:44.8]}
25. Raf1 {[%clk 0:01:53.5]} 25... f6 {[%clk 0:03:43.8]} 26. R5f3 {[%clk
0:01:45.8]} 26... Rc4 {[%clk 0:03:40.1]} 27. Re3 {[%clk 0:01:41.5]} 27... Rb2
{[%clk 0:03:38.6]} 28. Rg3 {[%clk 0:01:26.2]} 28... Kf7 {[%clk 0:03:35.1]} 29.
h3 {[%clk 0:01:16.7]} 29... Rxe4 {[%clk 0:03:33.7]} 30. Rc1 {[%clk 0:01:10.5]}
30... Rd2 {[%clk 0:03:32.4]} 31. Rc7+ {[%clk 0:01:07.4]} 31... Re7 {[%clk
0:03:31.5]} 32. Rxe7+ {[%clk 0:01:03.1]} 32... Kxe7 {[%clk 0:03:30.6]} 33. Rxg7+
{[%clk 0:01:02.4]} 33... Ke8 {[%clk 0:03:29.8]} 34. Rxb7 {[%clk 0:01:01]} 34...
a5 {[%clk 0:03:26.5]} 35. Rh7 {[%clk 0:00:56.2]} 35... Rxd5 {[%clk 0:03:25.3]}
36. Rxh6 {[%clk 0:00:55.2]} 36... Kf7 {[%clk 0:03:24.6]} 37. Rh7+ {[%clk
0:00:42.6]} 37... Kg6 {[%clk 0:03:23.6]} 38. Ra7 {[%clk 0:00:35.9]} 38... Rc5
{[%clk 0:03:20]} 39. Kf2 {[%clk 0:00:31.6]} 39... Rc2+ {[%clk 0:03:18.6]} 40.
Kf3 {[%clk 0:00:30.4]} 40... Rc3+ {[%clk 0:03:17.8]} 41. Ke4 {[%clk 0:00:26.5]}
41... Rxa3 {[%clk 0:03:16.9]} 42. Kd5 {[%clk 0:00:25.5]} 42... a4 {[%clk
0:02:59.5]} 43. Kxd6 {[%clk 0:00:24]} 43... Rd3+ {[%clk 0:02:58.2]} 44. Kc5
{[%clk 0:00:22.1]} 44... a3 {[%clk 0:02:56.2]} 45. Kc4 {[%clk 0:00:20.7]} 45...
Rg3 {[%clk 0:02:54.6]} 46. Kb4 {[%clk 0:00:17.6]} 46... Rxg2 {[%clk 0:02:44.8]}
47. Rxa3 {[%clk 0:00:15.8]} 47... f5 {[%clk 0:02:38.6]} 48. Kc4 {[%clk
0:00:14.6]} 48... Kg5 {[%clk 0:02:36.6]} 49. Kd5 {[%clk 0:00:13.7]} 49... Re2
{[%clk 0:02:35.3]} 50. Ra4 {[%clk 0:00:08.2]} 50... f4 {[%clk 0:02:33.5]} 51.
h4+ {[%clk 0:00:06.5]} 51... Kg4 {[%clk 0:02:32.5]} 52. Kd6 {[%clk 0:00:04]}
52... Rh2 {[%clk 0:02:30.2]} 53. Kd5 {[%clk 0:00:01.6]} 53... Rxh4 {[%clk
0:02:15.7]} 54. Ra1 {[%clk 0:00:01.5]} 54... Rh3 {[%clk 0:02:13.9]} 55. Ke4
{[%clk 0:00:01.4]} 55... Re3+ {[%clk 0:02:12.6]} 56. Kd4 {[%clk 0:00:00.7]}
56... Re8 {[%clk 0:02:11.8]} 57. Rf1 {[%clk 0:00:00.4]} 57... f3 {[%clk
0:02:10.8]} 58. Rg1+ {[%clk 0:00:00.3]} 58... Kf4 {[%clk 0:02:10.1]} 0-1

[Event "Live Chess"]
[Site "Chess.com"]
[Date "2023.05.21"]
[Round "-"]
[White "HoarseyHorsey"]
[Black "hunany_3"]
[Result "0-1"]
[WhiteElo "1443"]
[BlackElo "1726"]
[TimeControl "300"]
[EndTime "2:10:58 PDT"]
[Termination "hunany_3 won by resignation"]

1. d4 {[%clk 0:04:58.6]} 1... Nf6 {[%clk 0:04:58.3]} 2. c4 {[%clk 0:04:57.9]}
2... g6 {[%clk 0:04:58.2]} 3. f3 {[%clk 0:04:57.1]} 3... d6 {[%clk 0:04:58]} 4.
e4 {[%clk 0:04:56.8]} 4... Bg7 {[%clk 0:04:57.4]} 5. Nc3 {[%clk 0:04:56.4]} 5...
Nbd7 {[%clk 0:04:57]} 6. Nge2 {[%clk 0:04:54.2]} 6... O-O {[%clk 0:04:56.2]} 7.
Be3 {[%clk 0:04:53.3]} 7... e5 {[%clk 0:04:55.6]} 8. d5 {[%clk 0:04:52.4]} 8...
h6 {[%clk 0:04:51.6]} 9. Qd2 {[%clk 0:04:50.3]} 9... Kh7 {[%clk 0:04:50.9]} 10.
g4 {[%clk 0:04:48.9]} 10... Nc5 {[%clk 0:04:45.2]} 11. h4 {[%clk 0:04:39.6]}
11... Ne8 {[%clk 0:04:39]} 12. h5 {[%clk 0:04:34.4]} 12... g5 {[%clk 0:04:37.6]}
13. f4 {[%clk 0:04:22.3]} 13... exf4 {[%clk 0:04:32.2]} 14. Bxc5 {[%clk
0:04:11.4]} 14... dxc5 {[%clk 0:04:30.6]} 15. Bh3 {[%clk 0:04:07.2]} 15... Nd6
{[%clk 0:04:24.8]} 16. O-O-O {[%clk 0:04:03.7]} 16... Re8 {[%clk 0:04:24]} 17.
Qc2 {[%clk 0:03:47.8]} 17... Qe7 {[%clk 0:04:19.2]} 18. e5+ {[%clk 0:03:44.7]}
18... Kh8 {[%clk 0:04:16.8]} 19. exd6 {[%clk 0:03:42]} 19... Qxd6 {[%clk
0:04:16.7]} 20. Bg2 {[%clk 0:03:34.8]} 20... Bxg4 {[%clk 0:04:13.4]} 21. Be4
{[%clk 0:03:28.5]} 21... Qe7 {[%clk 0:03:55.5]} 22. Rde1 {[%clk 0:03:18]} 22...
Qd6 {[%clk 0:03:43.3]} 23. Bf5 {[%clk 0:03:05.1]} 23... Bxe2 {[%clk 0:03:26.8]}
24. Rxe2 {[%clk 0:02:58.7]} 24... f3 {[%clk 0:03:22.1]} 25. Rxe8+ {[%clk
0:02:52.4]} 25... Rxe8 {[%clk 0:03:22]} 26. Rf1 {[%clk 0:02:43.5]} 26... Qg3
{[%clk 0:03:19.9]} 27. Ne4 {[%clk 0:02:15.3]} 27... Qf4+ {[%clk 0:03:03.7]} 28.
Kb1 {[%clk 0:02:13.8]} 28... Qxf5 {[%clk 0:03:02.6]} 29. Re1 {[%clk 0:02:07.7]}
29... f2 {[%clk 0:02:48.2]} 30. Rf1 {[%clk 0:02:03.5]} 30... Rxe4 {[%clk
0:02:45.2]} 31. Qxf2 {[%clk 0:01:55]} 31... Rf4+ {[%clk 0:02:38.4]} 0-1

[Event "Live Chess"]
[Site "Chess.com"]
[Date "2023.05.21"]
[Round "-"]
[White "OceanFloater"]
[Black "NatashaRegan"]
[Result "0-1"]
[WhiteElo "1026"]
[BlackElo "1741"]
[TimeControl "300"]
[EndTime "2:11:01 PDT"]
[Termination "NatashaRegan won by resignation"]

1. e4 {[%clk 0:04:58.1]} 1... e5 {[%clk 0:04:58]} 2. Nf3 {[%clk 0:04:57.8]} 2...
Nf6 {[%clk 0:04:54.6]} 3. Nxe5 {[%clk 0:04:55.6]} 3... Nxe4 {[%clk 0:04:49.1]}
4. Nc3 {[%clk 0:04:53.4]} 4... Nxc3 {[%clk 0:04:46.3]} 5. dxc3 {[%clk
0:04:51.2]} 5... Qe7 {[%clk 0:04:44.8]} 6. Qe2 {[%clk 0:04:49.9]} 6... d6 {[%clk
0:04:42.4]} 7. Nc4 {[%clk 0:04:42.7]} 7... Nc6 {[%clk 0:04:39.4]} 8. b3 {[%clk
0:04:37.2]} 8... Be6 {[%clk 0:04:35.6]} 9. Qf3 {[%clk 0:04:12]} 9... O-O-O
{[%clk 0:04:26.6]} 10. Be3 {[%clk 0:04:08.1]} 10... Kb8 {[%clk 0:04:22.9]} 11.
O-O-O {[%clk 0:04:06]} 11... g6 {[%clk 0:04:14.7]} 12. b4 {[%clk 0:04:04.7]}
12... Bg7 {[%clk 0:04:12.3]} 13. Na5 {[%clk 0:04:01.8]} 13... Nxa5 {[%clk
0:04:07.6]} 14. bxa5 {[%clk 0:03:59.8]} 14... Bxa2 {[%clk 0:04:02.4]} 15. a6
{[%clk 0:03:55.7]} 15... c6 {[%clk 0:03:56.3]} 16. axb7 {[%clk 0:03:53.7]} 16...
Qxb7 {[%clk 0:03:53.7]} 17. Bf4 {[%clk 0:03:26.3]} 17... Bd5 {[%clk 0:03:34.8]}
18. Bxd6+ {[%clk 0:03:23.8]} 18... Rxd6 {[%clk 0:03:31.1]} 19. Qf4 {[%clk
0:03:21.4]} 19... Qc7 {[%clk 0:03:25.3]} 20. Qb4+ {[%clk 0:03:18.7]} 20... Ka8
{[%clk 0:03:20.9]} 21. Ba6 {[%clk 0:03:10.6]} 21... Rb8 {[%clk 0:03:16.8]} 22.
Qf4 {[%clk 0:03:03.6]} 22... g5 {[%clk 0:03:08.3]} 23. Qxg5 {[%clk 0:02:57.2]}
23... Bh6 {[%clk 0:03:06.5]} 24. Qxh6 {[%clk 0:02:52.2]} 24... Rxh6 {[%clk
0:03:04.2]} 0-1

[Event "Live Chess"]
[Site "Chess.com"]
[Date "2023.05.21"]
[Round "-"]
[White "TheSmoulderingMaster"]
[Black "ranvir123"]
[Result "1-0"]
[WhiteElo "1698"]
[BlackElo "920"]
[TimeControl "300"]
[EndTime "2:11:40 PDT"]
[Termination "TheSmoulderingMaster won by resignation"]

1. e4 {[%clk 0:04:59]} 1... e5 {[%clk 0:04:59]} 2. Nf3 {[%clk 0:04:57.4]} 2...
Nc6 {[%clk 0:04:58.6]} 3. Bb5 {[%clk 0:04:56]} 3... d6 {[%clk 0:04:56.9]} 4. O-O
{[%clk 0:04:54.7]} 4... Bd7 {[%clk 0:04:54.2]} 5. d4 {[%clk 0:04:53.2]} 5... a6
{[%clk 0:04:51.8]} 6. Bxc6 {[%clk 0:04:52.6]} 6... Bxc6 {[%clk 0:04:49.8]} 7.
dxe5 {[%clk 0:04:52.1]} 7... dxe5 {[%clk 0:04:48.7]} 8. Qe2 {[%clk 0:04:50.5]}
8... Nf6 {[%clk 0:04:45.8]} 9. Bg5 {[%clk 0:04:48.5]} 9... h6 {[%clk 0:04:43.8]}
10. Bh4 {[%clk 0:04:47]} 10... g5 {[%clk 0:04:39.9]} 11. Bg3 {[%clk 0:04:45.6]}
11... Qd7 {[%clk 0:04:33.1]} 12. Nxe5 {[%clk 0:04:42.8]} 12... Qe7 {[%clk
0:04:22.7]} 13. Nxc6 {[%clk 0:04:41.2]} 13... bxc6 {[%clk 0:04:21.5]} 14. Qc4
{[%clk 0:04:39]} 14... Nxe4 {[%clk 0:04:14.5]} 15. Qxc6+ {[%clk 0:04:35.6]}
15... Qd7 {[%clk 0:04:03.2]} 16. Qxa8+ {[%clk 0:04:32]} 16... Ke7 {[%clk
0:04:01.9]} 17. Qxe4+ {[%clk 0:04:30.9]} 1-0

[Event "Live Chess"]
[Site "Chess.com"]
[Date "2023.05.21"]
[Round "-"]
[White "chekagain"]
[Black "raminguy"]
[Result "0-1"]
[WhiteElo "841"]
[BlackElo "1976"]
[TimeControl "300"]
[EndTime "2:11:52 PDT"]
[Termination "raminguy won by checkmate"]

1. e4 {[%clk 0:04:56.3]} 1... e5 {[%clk 0:04:59.3]} 2. Nf3 {[%clk 0:04:54.4]}
2... Nc6 {[%clk 0:04:58.9]} 3. d4 {[%clk 0:04:53.6]} 3... exd4 {[%clk
0:04:57.9]} 4. Nxd4 {[%clk 0:04:53.5]} 4... Qf6 {[%clk 0:04:57]} 5. Nxc6 {[%clk
0:04:51]} 5... Bc5 {[%clk 0:04:56.7]} 6. f3 {[%clk 0:04:40.4]} 6... dxc6 {[%clk
0:04:55.3]} 7. Nc3 {[%clk 0:04:37.4]} 7... Be6 {[%clk 0:04:53.4]} 8. a3 {[%clk
0:04:33.9]} 8... Rd8 {[%clk 0:04:48.8]} 9. Bd2 {[%clk 0:04:14.6]} 9... Qd4
{[%clk 0:04:44.1]} 10. Qe2 {[%clk 0:03:55.6]} 10... Bc4 {[%clk 0:04:42.8]} 11.
Qe3 {[%clk 0:03:33.6]} 11... Qxe3+ {[%clk 0:04:38]} 12. Bxe3 {[%clk 0:03:32.3]}
12... Bxe3 {[%clk 0:04:37.9]} 13. Bxc4 {[%clk 0:03:29.4]} 13... Ne7 {[%clk
0:04:28.1]} 14. Nd1 {[%clk 0:03:24.6]} 14... Bd2+ {[%clk 0:04:21]} 15. Ke2
{[%clk 0:03:19.6]} 15... Ba5 {[%clk 0:04:19.7]} 16. Bd3 {[%clk 0:03:14.9]} 16...
Ng6 {[%clk 0:04:16.9]} 17. c4 {[%clk 0:03:13.2]} 17... Nf4+ {[%clk 0:04:14.7]}
18. Kf2 {[%clk 0:03:10.1]} 18... Nxd3+ {[%clk 0:04:13.2]} 19. Ke2 {[%clk
0:03:08.3]} 19... Bb6 {[%clk 0:04:08.8]} 20. b4 {[%clk 0:03:02.7]} 20... c5
{[%clk 0:04:06.9]} 21. bxc5 {[%clk 0:03:01.3]} 21... Nxc5 {[%clk 0:04:04.9]} 22.
Nc3 {[%clk 0:02:59.4]} 22... c6 {[%clk 0:03:58.6]} 23. Rhd1 {[%clk 0:02:48.7]}
23... O-O {[%clk 0:03:57.1]} 24. Rxd8 {[%clk 0:02:46.7]} 24... Rxd8 {[%clk
0:03:57]} 25. f4 {[%clk 0:02:44.1]} 25... Ba5 {[%clk 0:03:52.5]} 26. Rd1 {[%clk
0:02:34.7]} 26... Rxd1 {[%clk 0:03:46.2]} 27. Nxd1 {[%clk 0:02:32.8]} 27... Nxe4
{[%clk 0:03:45]} 28. Ke3 {[%clk 0:02:31.4]} 28... f5 {[%clk 0:03:32.6]} 29. g4
{[%clk 0:02:28.8]} 29... g6 {[%clk 0:03:31.2]} 30. gxf5 {[%clk 0:02:25.1]} 30...
gxf5 {[%clk 0:03:31.1]} 31. h4 {[%clk 0:02:24.1]} 31... Kf7 {[%clk 0:03:29.1]}
32. Nb2 {[%clk 0:02:22.5]} 32... Bc3 {[%clk 0:03:21.1]} 33. Nd3 {[%clk
0:02:17.8]} 33... b6 {[%clk 0:03:18]} 34. Ne5+ {[%clk 0:01:54.7]} 34... Bxe5
{[%clk 0:03:15.4]} 35. fxe5 {[%clk 0:01:54.5]} 35... Ke6 {[%clk 0:03:14.6]} 36.
Kf4 {[%clk 0:01:51.7]} 36... Nd2 {[%clk 0:03:13.8]} 37. h5 {[%clk 0:01:34.6]}
37... Nxc4 {[%clk 0:03:11.7]} 38. Kg5 {[%clk 0:01:32.9]} 38... Nxe5 {[%clk
0:03:10.3]} 39. Kh6 {[%clk 0:01:29.9]} 39... Ng4+ {[%clk 0:03:08.7]} 40. Kxh7
{[%clk 0:01:29]} 40... c5 {[%clk 0:03:07.8]} 41. h6 {[%clk 0:01:28.2]} 41...
Nxh6 {[%clk 0:03:07.1]} 42. Kxh6 {[%clk 0:01:27.3]} 42... c4 {[%clk 0:03:06.6]}
43. Kg5 {[%clk 0:01:26.8]} 43... c3 {[%clk 0:03:06]} 44. Kf4 {[%clk 0:01:25.9]}
44... c2 {[%clk 0:03:05.5]} 45. a4 {[%clk 0:01:22.4]} 45... c1=Q+ {[%clk
0:03:04.4]} 46. Kf3 {[%clk 0:01:20.8]} 46... Qc4 {[%clk 0:03:02.2]} 47. a5
{[%clk 0:01:19.8]} 47... Qa4 {[%clk 0:03:02.1]} 48. Ke3 {[%clk 0:01:18.1]} 48...
Qxa5 {[%clk 0:03:00.8]} 49. Kd3 {[%clk 0:01:16.9]} 49... Qc5 {[%clk 0:03:00.7]}
50. Ke2 {[%clk 0:01:16.4]} 50... b5 {[%clk 0:02:59.9]} 51. Kf3 {[%clk 0:01:16]}
51... b4 {[%clk 0:02:59.5]} 52. Kf4 {[%clk 0:01:15.6]} 52... b3 {[%clk
0:02:59.3]} 53. Kg5 {[%clk 0:01:15]} 53... b2 {[%clk 0:02:59.1]} 54. Kh4 {[%clk
0:01:11.7]} 54... b1=R {[%clk 0:02:59]} 55. Kg5 {[%clk 0:01:10.3]} 55... Rg1+
{[%clk 0:02:55.3]} 56. Kf4 {[%clk 0:01:09.1]} 56... Qd4+ {[%clk 0:02:53]} 57.
Kf3 {[%clk 0:01:07.8]} 57... Qe4+ {[%clk 0:02:51.3]} 58. Kf2 {[%clk 0:01:06.7]}
58... Rg2+ {[%clk 0:02:50]} 59. Kf1 {[%clk 0:01:03.9]} 59... Qe2# {[%clk
0:02:49.9]} 0-1

[Event "Live Chess"]
[Site "Chess.com"]
[Date "2023.05.21"]
[Round "-"]
[White "yeetpizza74"]
[Black "Biranidun"]
[Result "0-1"]
[WhiteElo "465"]
[BlackElo "2551"]
[TimeControl "300"]
[EndTime "2:12:04 PDT"]
[Termination "Biranidun won by checkmate"]

1. e4 {[%clk 0:04:58.3]} 1... c5 {[%clk 0:04:57.7]} 2. d4 {[%clk 0:04:56.6]}
2... cxd4 {[%clk 0:04:56.7]} 3. Qxd4 {[%clk 0:04:55.3]} 3... Nc6 {[%clk
0:04:55.7]} 4. Qd1 {[%clk 0:04:53.8]} 4... Nf6 {[%clk 0:04:54.9]} 5. Nc3 {[%clk
0:04:50.9]} 5... g6 {[%clk 0:04:54.2]} 6. Nf3 {[%clk 0:04:49.1]} 6... Bg7 {[%clk
0:04:53.8]} 7. Bd3 {[%clk 0:04:33]} 7... d6 {[%clk 0:04:51.7]} 8. Bf4 {[%clk
0:04:21.7]} 8... O-O {[%clk 0:04:50]} 9. e5 {[%clk 0:04:19.8]} 9... dxe5 {[%clk
0:04:48.3]} 10. Bxe5 {[%clk 0:04:18.1]} 10... Nxe5 {[%clk 0:04:46.2]} 11. Nxe5
{[%clk 0:04:16.5]} 11... Qc7 {[%clk 0:04:31]} 12. Qe2 {[%clk 0:04:10.5]} 12...
Be6 {[%clk 0:04:27.3]} 13. O-O {[%clk 0:03:51.6]} 13... Rfd8 {[%clk 0:04:23.5]}
14. Be4 {[%clk 0:03:30.8]} 14... Qxe5 {[%clk 0:04:21.5]} 15. Rad1 {[%clk
0:03:22.8]} 15... Nxe4 {[%clk 0:04:18.8]} 16. Rxd8+ {[%clk 0:03:16.5]} 16...
Rxd8 {[%clk 0:04:17.1]} 17. Rd1 {[%clk 0:03:14.7]} 17... Rxd1+ {[%clk
0:04:14.6]} 18. Qxd1 {[%clk 0:03:13.5]} 18... Nxc3 {[%clk 0:04:13]} 19. Qd8+
{[%clk 0:03:05.8]} 19... Bf8 {[%clk 0:04:11.6]} 20. bxc3 {[%clk 0:03:01.4]}
20... Qe1# {[%clk 0:04:10.7]} 0-1